[Event "Smuk Skak GM Tournament 2021"]
[Site "Skanderborg, Denmark"]
[Date "2021.08.14"]
[Round "1.5"]
[White "Olsen, Filip Boe"]
[Black "Antolak, Julia"]
[Result "1-0"]
[TimeControl "90 minutes + 30 minutes at move 40, 30 secs pr move from move 1"]
[WhiteTitle "IM"]
[BlackTitle "WIM"]
[WhiteFideId "1440640"]
[BlackFideId "1159569"]
[WhiteElo "2397"]
[BlackElo "2340"]

1. d4 {[%clk 01:30:56]} {[%emt 00:00:03]} Nf6 {[%clk 01:30:51]} {[%emt
00:00:10]} 2. c4 {[%clk 01:31:16]} {[%emt 00:00:10]} g6 {[%clk 01:31:09]}
{[%emt 00:00:13]} 3. Nc3 {[%clk 01:31:34]} {[%emt 00:00:11]} d5 {[%clk
01:31:28]} {[%emt 00:00:11]} 4. cxd5 {[%clk 01:31:45]} {[%emt 00:00:19]} Nxd5
{[%clk 01:31:50]} {[%emt 00:00:08]} 5. e4 {[%clk 01:32:02]} {[%emt 00:00:12]}
Nxc3 {[%clk 01:32:15]} {[%emt 00:00:06]} 6. bxc3 {[%clk 01:32:12]} {[%emt
00:00:20]} Bg7 {[%clk 01:32:38]} {[%emt 00:00:07]} 7. Nf3 {[%clk 01:31:20]}
{[%emt 00:01:22]} c5 {[%clk 01:31:57]} {[%emt 00:01:11]} 8. h3 {[%clk
01:31:07]} {[%emt 00:00:42]} O-O {[%clk 01:30:34]} {[%emt 00:01:53]} 9. Be2
{[%clk 01:31:04]} {[%emt 00:00:34]} Nc6 {[%clk 01:30:20]} {[%emt 00:00:45]} 10.
Be3 {[%clk 01:31:07]} {[%emt 00:00:27]} cxd4 {[%clk 01:29:37]} {[%emt
00:01:13]} 11. cxd4 {[%clk 01:31:35]} {[%emt 00:00:03]} f5 {[%clk 01:28:19]}
{[%emt 00:01:47]} 12. Bc4+ {[%clk 01:28:38]} {[%emt 00:03:26]} Kh8 {[%clk
01:25:09]} {[%emt 00:03:41]} 13. O-O {[%clk 01:27:44]} {[%emt 00:01:24]} f4
{[%clk 01:25:10]} {[%emt 00:00:29]} 14. Bd2 {[%clk 01:26:55]} {[%emt 00:01:18]}
Nxd4 {[%clk 01:24:20]} {[%emt 00:01:20]} 15. Bc3 {[%clk 01:23:01]} {[%emt
00:04:24]} b5 {[%clk 01:23:35]} {[%emt 00:01:15]} 16. Bd5 {[%clk 01:08:59]}
{[%emt 00:14:32]} Nxf3+ {[%clk 01:22:59]} {[%emt 00:01:06]} 17. Qxf3 {[%clk
01:09:25]} {[%emt 00:00:04]} Rb8 {[%clk 01:23:18]} {[%emt 00:00:12]} 18. Rac1
{[%clk 01:04:25]} {[%emt 00:05:30]} Bb7 {[%clk 01:13:25]} {[%emt 00:10:23]} 19.
Rfd1 {[%clk 00:57:00]} {[%emt 00:07:55]} Qb6 {[%clk 01:10:09]} {[%emt
00:03:45]} 20. Bb4 {[%clk 00:49:19]} {[%emt 00:08:12]} Bxd5 {[%clk 00:48:58]}
{[%emt 00:21:41]} 21. exd5 {[%clk 00:48:45]} {[%emt 00:01:04]} Rf7 {[%clk
00:48:12]} {[%emt 00:01:15]} 22. Re1 {[%clk 00:38:34]} {[%emt 00:10:41]} Qb7
{[%clk 00:42:54]} {[%emt 00:05:48]} 23. Rc6 {[%clk 00:33:49]} {[%emt 00:05:15]}
Rd8 {[%clk 00:35:22]} {[%emt 00:08:03]} 24. Qe4 {[%clk 00:24:30]} {[%emt
00:09:49]} Bf6 {[%clk 00:33:09]} {[%emt 00:02:43]} 25. Ba5 {[%clk 00:19:21]}
{[%emt 00:05:38]} Rdf8 {[%clk 00:31:45]} {[%emt 00:01:53]} 26. Bb4 {[%clk
00:16:13]} {[%emt 00:03:39]} Rd8 {[%clk 00:31:34]} {[%emt 00:00:41]} 27. Rec1
{[%clk 00:13:58]} {[%emt 00:02:45]} Kg7 {[%clk 00:29:19]} {[%emt 00:02:45]} 28.
Bc3 {[%clk 00:10:02]} {[%emt 00:04:26]} Qd7 {[%clk 00:24:25]} {[%emt 00:05:23]}
29. Bxf6+ {[%clk 00:07:45]} {[%emt 00:02:48]} Rxf6 {[%clk 00:24:35]} {[%emt
00:00:21]} 30. R1c5 {[%clk 00:05:23]} {[%emt 00:02:52]} Rxc6 {[%clk 00:18:33]}
{[%emt 00:06:31]} 31. dxc6 {[%clk 00:05:40]} {[%emt 00:00:12]} Qd1+ {[%clk
00:10:15]} {[%emt 00:08:48]} 32. Kh2 {[%clk 00:06:09]} {[%emt 00:00:01]} Qd6
{[%clk 00:10:39]} {[%emt 00:00:06]} 33. Rxb5 {[%clk 00:05:49]} {[%emt
00:00:50]} Rc8 {[%clk 00:08:47]} {[%emt 00:02:22]} 34. Re5 {[%clk 00:04:23]}
{[%emt 00:01:57]} Kf7 {[%clk 00:05:24]} {[%emt 00:03:52]} 35. Ra5 {[%clk
00:01:25]} {[%emt 00:03:28]} Rxc6 {[%clk 00:02:45]} {[%emt 00:03:10]} 36. Rxa7
{[%clk 00:01:46]} {[%emt 00:00:08]} Rc5 {[%clk 00:00:55]} {[%emt 00:02:21]} 37.
Ra4 {[%clk 00:01:14]} {[%emt 00:01:02]} Rf5 {[%clk 00:01:03]} {[%emt 00:00:22]}
38. Qf3 {[%clk 00:01:07]} {[%emt 00:00:35]} Kg7 {[%clk 00:00:48]} {[%emt
00:00:47]} 39. Re4 {[%clk 00:01:15]} {[%emt 00:00:22]} Kf7 {[%clk 00:00:59]}
{[%emt 00:00:19]} 40. a4 {[%clk 00:01:26]} {[%emt 00:00:19]} Qc7 {[%clk
00:00:43]} {[%emt 00:00:46]} 41. Qb3+ {[%clk 00:01:15]} {[%emt 00:00:40]} Kg7
{[%clk 00:29:56]} {[%emt 00:01:18]} 42. Qe6 {[%clk 00:26:07]} {[%emt 00:05:37]}
f3+ {[%clk 00:23:08]} {[%emt 00:07:19]} 43. g3 {[%clk 00:26:04]} {[%emt
00:00:32]} Kf8 {[%clk 00:19:19]} {[%emt 00:04:20]} 44. Re3 {[%clk 00:22:12]}
{[%emt 00:04:21]} Qa7 {[%clk 00:13:46]} {[%emt 00:06:03]} 45. Qe4 {[%clk
00:21:17]} {[%emt 00:01:26]} Kg8 {[%clk 00:13:46]} {[%emt 00:00:30]} 46. Qxe7
{[%clk 00:18:00]} {[%emt 00:03:47]} Qxa4 {[%clk 00:12:42]} {[%emt 00:01:35]} 47.
Rd3 {[%clk 00:17:46]} {[%emt 00:00:42]} Rf7 {[%clk 00:11:40]} {[%emt 00:01:33]}
48. Rd8+ {[%clk 00:18:02]} {[%emt 00:00:14]} Kg7 {[%clk 00:12:05]} {[%emt
00:00:05]} 49. Qe5+ {[%clk 00:18:23]} {[%emt 00:00:08]} Kh6 {[%clk 00:11:52]}
{[%emt 00:00:44]} 50. Rd4 {[%clk 00:18:37]} {[%emt 00:00:15]} Rf5 {[%clk
00:10:52]} {[%emt 00:01:31]} 51. Qe3+ {[%clk 00:18:59]} {[%emt 00:00:09]} 1-0

[Event "Smuk Skak GM Tournament 2021"]
[Site "Skanderborg, Denmark"]
[Date "2021.08.15"]
[Round "2.1"]
[White "Svane, Frederik"]
[Black "Janik, Igor"]
[Result "1/2-1/2"]
[TimeControl "90 minutes + 30 minutes at move 40, 30 secs pr move from move 1"]
[WhiteTitle "IM"]
[BlackTitle "IM"]
[WhiteFideId "12923044"]
[BlackFideId "1159259"]
[WhiteElo "2438"]
[BlackElo "2500"]

1. e4 {[%clk 01:30:57]} {[%emt 00:20:48]} e5 {[%clk 01:30:50]} {[%emt
00:00:05]} 2. Nf3 {[%clk 01:31:15]} {[%emt 00:00:11]} Nf6 {[%clk 01:31:14]}
{[%emt 00:00:06]} 3. Nc3 {[%clk 01:26:11]} {[%emt 00:05:35]} Nc6 {[%clk
01:29:47]} {[%emt 00:01:57]} 4. h3 {[%clk 01:26:31]} {[%emt 00:00:10]} Bc5
{[%clk 01:23:29]} {[%emt 00:06:47]} 5. Nxe5 {[%clk 01:24:05]} {[%emt 00:02:56]}
Nxe5 {[%clk 01:23:51]} {[%emt 00:00:08]} 6. d4 {[%clk 01:24:28]} {[%emt
00:00:06]} Bd6 {[%clk 01:24:07]} {[%emt 00:00:14]} 7. dxe5 {[%clk 01:22:29]}
{[%emt 00:02:30]} Bxe5 {[%clk 01:24:30]} {[%emt 00:00:07]} 8. Bd3 {[%clk
01:22:44]} {[%emt 00:00:15]} O-O {[%clk 01:19:42]} {[%emt 00:05:19]} 9. O-O
{[%clk 01:23:03]} {[%emt 00:00:10]} Re8 {[%clk 01:14:42]} {[%emt 00:05:31]} 10.
Nb5 {[%clk 01:20:07]} {[%emt 00:03:26]} c6 {[%clk 01:08:40]} {[%emt 00:06:32]}
11. f4 {[%clk 01:19:28]} {[%emt 00:01:09]} Bb8 {[%clk 01:09:06]} {[%emt
00:00:05]} 12. Nc3 {[%clk 01:13:20]} {[%emt 00:06:38]} d6 {[%clk 01:08:07]}
{[%emt 00:01:29]} 13. Qf3 {[%clk 01:11:26]} {[%emt 00:02:23]} a5 {[%clk
00:58:50]} {[%emt 00:09:49]} 14. Be3 {[%clk 01:06:56]} {[%emt 00:04:59]} a4
{[%clk 00:57:20]} {[%emt 00:02:04]} 15. Rae1 {[%clk 01:01:55]} {[%emt
00:05:30]} Be6 {[%clk 00:37:58]} {[%emt 00:19:57]} 16. Kh1 {[%clk 00:58:23]}
{[%emt 00:03:54]} Ba7 {[%clk 00:35:34]} {[%emt 00:02:54]} 17. Bxa7 Rxa7 {[%clk
00:36:02]} 18. e5 {[%clk 00:34:45]} {[%emt 00:01:13]} dxe5 {[%clk 00:36:21]}
{[%emt 00:00:10]} 19. fxe5 {[%clk 00:34:20]} {[%emt 00:01:02]} Nd7 {[%clk
00:36:31]} {[%emt 00:00:18]} 20. Qh5 {[%clk 00:32:46]} {[%emt 00:01:58]} g6
{[%clk 00:31:03]} {[%emt 00:05:58]} 21. Qh6 {[%clk 00:33:04]} {[%emt 00:00:11]}
Ra5 {[%clk 00:29:31]} {[%emt 00:02:02]} 22. Qf4 {[%clk 00:28:36]} {[%emt
00:04:58]} Qc7 {[%clk 00:20:03]} {[%emt 00:10:09]} 23. Nxa4 {[%clk 00:17:17]}
{[%emt 00:11:45]} Qb8 {[%clk 00:13:05]} {[%emt 00:07:27]} 24. Nc3 {[%clk
00:16:33]} {[%emt 00:01:21]} Rxe5 {[%clk 00:13:30]} 25. Rxe5 {[%clk 00:08:26]}
{[%emt 00:08:32]} Qxe5 {[%clk 00:13:35]} {[%emt 00:00:22]} 26. Qf2 {[%clk
00:07:48]} {[%emt 00:01:08]} f5 {[%clk 00:11:13]} {[%emt 00:02:52]} 27. Re1
{[%clk 00:08:06]} {[%emt 00:00:12]} Qd6 {[%clk 00:10:44]} {[%emt 00:01:00]} 28.
Bc4 {[%clk 00:07:45]} {[%emt 00:00:51]} Nf6 {[%clk 00:10:07]} {[%emt 00:01:16]}
29. Rxe6 {[%clk 00:05:40]} {[%emt 00:02:30]} Rxe6 {[%clk 00:10:32]} {[%emt
00:00:10]} 30. Bxe6+ {[%clk 00:05:59]} {[%emt 00:00:10]} Qxe6 {[%clk 00:11:01]}
31. a4 {[%clk 00:04:59]} {[%emt 00:01:33]} Qe5 {[%clk 00:07:30]} {[%emt
00:03:55]} 32. Qb6 {[%clk 00:03:03]} {[%emt 00:02:23]} Nh5 {[%clk 00:05:11]}
{[%emt 00:02:57]} 33. Qxb7 {[%clk 00:03:28]} Ng3+ {[%clk 00:04:09]} {[%emt
00:01:34]} 34. Kh2 {[%clk 00:03:53]} Ne4+ {[%clk 00:03:36]} {[%emt 00:01:02]}
35. Kg1 {[%clk 00:04:15]} {[%emt 00:00:09]} Qd4+ {[%clk 00:03:54]} {[%emt
00:00:12]} 36. Kh2 {[%clk 00:04:39]} {[%emt 00:00:05]} Qe5+ {[%clk 00:02:17]}
{[%emt 00:02:08]} 37. Kg1 {[%clk 00:05:04]} {[%emt 00:00:10]} Qd4+ {[%clk
00:02:39]} {[%emt 00:00:03]} 38. Kh2 {[%clk 00:05:27]} {[%emt 00:00:06]} Qe5+
{[%clk 00:02:06]} {[%emt 00:01:11]} 1/2-1/2

[Event "Smuk Skak GM Tournament 2021"]
[Site "Skanderborg, Denmark"]
[Date "2021.08.15"]
[Round "2.2"]
[White "Pedersen, Nicolai Vesterbæk"]
[Black "Olsen, Filip Boe"]
[Result "0-1"]
[TimeControl "90 minutes + 30 minutes at move 40, 30 secs pr move from move 1"]
[WhiteTitle "IM"]
[BlackTitle "IM"]
[WhiteFideId "1402340"]
[BlackFideId "1440640"]
[WhiteElo "2369"]
[BlackElo "2397"]

1. Nf3 {[%clk 01:30:55]} {[%emt 19:02:38]} Nf6 {[%clk 01:30:47]} {[%emt
00:00:11]} 2. g3 {[%clk 01:31:09]} {[%emt 00:00:16]} b5 {[%clk 01:30:57]}
{[%emt 00:00:20]} 3. Bg2 {[%clk 01:27:16]} {[%emt 00:04:23]} Bb7 {[%clk
01:31:13]} {[%emt 00:00:13]} 4. O-O {[%clk 01:25:01]} {[%emt 00:02:45]} e6
{[%clk 01:29:22]} {[%emt 00:02:20]} 5. b3 {[%clk 01:22:48]} {[%emt 00:02:45]}
c5 {[%clk 01:28:45]} {[%emt 00:01:06]} 6. c4 {[%clk 01:22:02]} {[%emt
00:01:17]} bxc4 {[%clk 01:27:17]} {[%emt 00:01:58]} 7. bxc4 {[%clk 01:22:24]}
{[%emt 00:00:08]} Be7 {[%clk 01:27:05]} {[%emt 00:00:41]} 8. Nc3 {[%clk
01:20:15]} {[%emt 00:02:40]} O-O {[%clk 01:18:40]} {[%emt 00:08:54]} 9. Rb1
{[%clk 01:19:16]} {[%emt 00:01:30]} Bc6 {[%clk 01:17:01]} {[%emt 00:02:09]} 10.
d3 {[%clk 01:01:55]} {[%emt 00:17:52]} d6 {[%clk 01:15:48]} {[%emt 00:01:42]}
11. Bd2 {[%clk 00:47:53]} {[%emt 00:14:34]} Nbd7 {[%clk 01:15:17]} {[%emt
00:01:02]} 12. Qc2 {[%clk 00:47:37]} {[%emt 00:00:42]} Rb8 {[%clk 01:08:04]}
{[%emt 00:07:47]} 13. Rb3 {[%clk 00:46:08]} {[%emt 00:02:00]} Rb6 {[%clk
01:04:31]} {[%emt 00:03:59]} 14. Rfb1 {[%clk 00:41:18]} {[%emt 00:05:20]} Qa8
{[%clk 01:02:10]} {[%emt 00:02:54]} 15. e4 {[%clk 00:40:08]} {[%emt 00:01:39]}
d5 {[%clk 00:43:26]} {[%emt 00:19:22]} 16. cxd5 {[%clk 00:34:08]} {[%emt
00:06:21]} exd5 {[%clk 00:39:04]} {[%emt 00:04:52]} 17. Nh4 {[%clk 00:34:24]}
{[%emt 00:00:19]} dxe4 {[%clk 00:33:07]} {[%emt 00:06:24]} 18. dxe4 {[%clk
00:33:18]} {[%emt 00:01:34]} c4 {[%clk 00:31:03]} {[%emt 00:02:34]} 19. Rxb6
{[%clk 00:31:10]} {[%emt 00:02:38]} axb6 {[%clk 00:31:20]} {[%emt 00:00:13]} 20.
Be3 {[%clk 00:28:04]} {[%emt 00:03:35]} Re8 {[%clk 00:21:47]} {[%emt 00:10:16]}
21. Nf5 {[%clk 00:19:26]} {[%emt 00:09:11]} Bf8 {[%clk 00:21:24]} {[%emt
00:00:41]} 22. f3 {[%clk 00:18:41]} {[%emt 00:01:21]} Rb8 {[%clk 00:17:18]}
{[%emt 00:04:45]} 23. Nb5 {[%clk 00:17:00]} {[%emt 00:02:02]} Ne5 {[%clk
00:11:07]} {[%emt 00:06:47]} 24. Nbd4 {[%clk 00:11:25]} {[%emt 00:05:52]} Qa4
{[%clk 00:08:54]} {[%emt 00:02:43]} 25. Qc3 {[%clk 00:09:43]} {[%emt 00:02:11]}
b5 {[%clk 00:05:32]} {[%emt 00:03:53]} 26. Bf4 {[%clk 00:06:02]} {[%emt
00:04:13]} b4 {[%clk 00:05:42]} {[%emt 00:00:21]} 27. Qa1 {[%clk 00:04:55]}
{[%emt 00:01:39]} Nfd7 {[%clk 00:01:35]} {[%emt 00:04:32]} 28. Nxc6 {[%clk
00:04:14]} {[%emt 00:01:11]} Nxc6 {[%clk 00:01:51]} {[%emt 00:00:20]} 29. Bxb8
{[%clk 00:04:38]} Ndxb8 {[%clk 00:02:14]} {[%emt 00:00:06]} 30. Bf1 {[%clk
00:03:28]} {[%emt 00:01:47]} g6 {[%clk 00:01:55]} {[%emt 00:00:44]} 31. Bxc4
{[%clk 00:02:53]} {[%emt 00:01:10]} gxf5 {[%clk 00:01:53]} {[%emt 00:00:31]} 32.
Qf6 {[%clk 00:02:55]} {[%emt 00:00:22]} Qa7+ {[%clk 00:02:10]} {[%emt
00:00:14]} 33. Kg2 {[%clk 00:03:12]} {[%emt 00:00:20]} fxe4 {[%clk 00:01:29]}
{[%emt 00:01:04]} 34. Rd1 {[%clk 00:02:53]} {[%emt 00:00:55]} exf3+ {[%clk
00:01:10]} {[%emt 00:00:46]} 35. Qxf3 {[%clk 00:02:32]} {[%emt 00:00:54]} Ne5
{[%clk 00:00:59]} {[%emt 00:00:35]} 36. Qf4 {[%clk 00:02:54]} {[%emt 00:00:08]}
Qe7 {[%clk 00:00:44]} {[%emt 00:00:45]} 37. Bd5 {[%clk 00:01:10]} {[%emt
00:02:14]} Nbd7 {[%clk 00:00:55]} {[%emt 00:00:19]} 38. Be4 {[%clk 00:01:05]}
{[%emt 00:00:35]} Nf6 {[%clk 00:00:45]} {[%emt 00:00:49]} 39. Bb1 {[%clk
00:01:02]} {[%emt 00:00:31]} Qb7+ {[%clk 00:00:58]} {[%emt 00:00:10]} 40. Kh3
{[%clk 00:01:21]} {[%emt 00:00:21]} Qf3 {[%clk 00:00:44]} {[%emt 00:00:41]} 41.
Qxf3 Nxf3 {[%clk 00:31:11]} 42. Bc2 {[%clk 00:25:47]} {[%emt 00:00:16]} Ne5
{[%clk 00:29:01]} {[%emt 00:02:39]} 43. Bb3 {[%clk 00:25:53]} {[%emt 00:00:21]}
Kg7 {[%clk 00:29:02]} {[%emt 00:00:31]} 44. Rd4 {[%clk 00:25:01]} {[%emt
00:01:22]} Bc5 {[%clk 00:26:54]} {[%emt 00:02:36]} 45. Rf4 {[%clk 00:25:15]}
{[%emt 00:00:21]} h6 {[%clk 00:26:27]} {[%emt 00:00:52]} 46. Kg2 {[%clk
00:24:49]} {[%emt 00:01:02]} Nfg4 {[%clk 00:25:41]} {[%emt 00:01:08]} 47. h3
{[%clk 00:24:41]} {[%emt 00:00:40]} Nf6 {[%clk 00:25:03]} {[%emt 00:01:13]} 48.
g4 {[%clk 00:24:40]} {[%emt 00:00:31]} Ng6 {[%clk 00:24:48]} {[%emt 00:00:41]}
49. Rc4 {[%clk 00:24:45]} {[%emt 00:00:25]} Bd6 {[%clk 00:24:57]} {[%emt
00:00:21]} 50. Rc6 {[%clk 00:24:59]} {[%emt 00:00:21]} Be5 {[%clk 00:22:06]}
{[%emt 00:03:14]} 51. Rc4 {[%clk 00:23:58]} {[%emt 00:01:33]} Bd6 {[%clk
00:18:52]} {[%emt 00:03:49]} 52. Rc6 {[%clk 00:24:15]} {[%emt 00:00:10]} Ne8
{[%clk 00:17:18]} {[%emt 00:02:01]} 53. Ba4 {[%clk 00:22:51]} {[%emt 00:02:02]}
Nf4+ {[%clk 00:16:10]} {[%emt 00:01:40]} 54. Kf1 {[%clk 00:21:41]} {[%emt
00:01:32]} Ne6 {[%clk 00:14:36]} {[%emt 00:02:05]} 55. Rb6 {[%clk 00:21:10]}
{[%emt 00:00:58]} N6c7 {[%clk 00:14:50]} {[%emt 00:00:17]} 56. Bb3 {[%clk
00:20:55]} {[%emt 00:00:44]} Kf6 {[%clk 00:14:05]} {[%emt 00:01:15]} 57. Kg2
{[%clk 00:20:16]} {[%emt 00:01:08]} Ke7 {[%clk 00:14:04]} {[%emt 00:00:31]} 58.
h4 {[%clk 00:19:14]} {[%emt 00:01:42]} Ne6 {[%clk 00:14:14]} {[%emt 00:00:17]}
59. Rb5 {[%clk 00:16:32]} {[%emt 00:03:05]} Nd4 {[%clk 00:13:06]} {[%emt
00:01:44]} 60. Rb7+ {[%clk 00:16:13]} {[%emt 00:00:52]} Nc7 {[%clk 00:13:28]}
61. Bc4 {[%clk 00:16:20]} {[%emt 00:00:31]} Nde6 {[%clk 00:13:03]} {[%emt
00:00:52]} 62. Bxe6 {[%clk 00:15:11]} {[%emt 00:01:37]} Kxe6 {[%clk 00:10:48]}
{[%emt 00:02:42]} 63. Rb8 {[%clk 00:15:23]} {[%emt 00:00:18]} Kf6 {[%clk
00:08:56]} {[%emt 00:02:21]} 64. Rb6 {[%clk 00:13:29]} {[%emt 00:02:30]} Ke7
{[%clk 00:08:58]} {[%emt 00:00:31]} 65. Rb8 {[%clk 00:13:16]} {[%emt 00:00:41]}
Nd5 {[%clk 00:09:03]} {[%emt 00:00:21]} 66. Rh8 {[%clk 00:11:35]} {[%emt
00:02:13]} Nc3 {[%clk 00:08:47]} {[%emt 00:01:01]} 67. Ra8 {[%clk 00:11:55]}
Kf6 {[%clk 00:07:09]} {[%emt 00:02:02]} 68. Kf3 {[%clk 00:12:09]} {[%emt
00:00:20]} Kg7 {[%clk 00:07:23]} {[%emt 00:00:20]} 69. Ra7 {[%clk 00:11:16]}
{[%emt 00:01:21]} Bc5 {[%clk 00:06:00]} {[%emt 00:01:42]} 70. Rc7 {[%clk
00:11:16]} {[%emt 00:00:41]} Bd6 {[%clk 00:05:36]} {[%emt 00:01:01]} 71. Ra7
{[%clk 00:11:12]} {[%emt 00:00:20]} Kf6 {[%clk 00:04:59]} {[%emt 00:01:21]} 72.
Ra6 {[%clk 00:10:27]} {[%emt 00:01:01]} Ke5 {[%clk 00:04:43]} {[%emt 00:01:01]}
73. Ra5+ {[%clk 00:08:15]} {[%emt 00:02:43]} Kd4 {[%clk 00:04:53]} {[%emt
00:00:20]} 74. g5 {[%clk 00:04:15]} {[%emt 00:04:24]} hxg5 {[%clk 00:04:15]}
{[%emt 00:01:01]} 75. hxg5 {[%clk 00:03:25]} {[%emt 00:01:21]} Be7 {[%clk
00:04:07]} {[%emt 00:00:41]} 76. Rf5 {[%clk 00:02:23]} {[%emt 00:01:42]} Nxa2
{[%clk 00:04:10]} {[%emt 00:00:20]} 77. Kg4 {[%clk 00:01:41]} {[%emt 00:01:01]}
b3 {[%clk 00:04:10]} {[%emt 00:00:41]} 78. Rf4+ {[%clk 00:01:16]} {[%emt
00:01:01]} Kd5 {[%clk 00:03:39]} {[%emt 00:01:01]} 79. Rf3 {[%clk 00:00:50]}
{[%emt 00:00:41]} Nc1 {[%clk 00:03:02]} {[%emt 00:01:21]} 80. Rxf7 {[%clk
00:00:32]} {[%emt 00:00:41]} b2 {[%clk 00:03:15]} {[%emt 00:00:20]} 81. Rf5+
{[%clk 00:00:56]} Kc6 {[%clk 00:03:28]} {[%emt 00:00:20]} 82. g6 {[%clk
00:00:44]} {[%emt 00:00:41]} b1=Q {[%clk 00:03:48]} 83. g7 {[%clk 00:01:04]}
{[%emt 00:00:20]} Qe4+ {[%clk 00:04:13]} 0-1

[Event "Smuk Skak GM Tournament 2021"]
[Site "Skanderborg, Denmark"]
[Date "2021.08.15"]
[Round "2.3"]
[White "Brunello, Sabino"]
[Black "Antolak, Julia"]
[Result "1-0"]
[TimeControl "90 minutes + 30 minutes at move 40, 30 secs pr move from move 1"]
[WhiteTitle "GM"]
[BlackTitle "WIM"]
[WhiteFideId "813613"]
[BlackFideId "1159569"]
[WhiteElo "2517"]
[BlackElo "2340"]

1. d4 {[%clk 01:30:56]} {[%emt 19:02:28]} Nf6 {[%clk 01:30:54]} 2. c4 {[%clk
01:31:21]} {[%emt 00:00:06]} e6 {[%clk 01:31:18]} {[%emt 00:00:05]} 3. Nc3
{[%clk 01:30:04]} {[%emt 00:01:48]} Bb4 {[%clk 01:31:24]} {[%emt 00:00:24]} 4.
e3 {[%clk 01:29:32]} {[%emt 00:01:02]} c5 {[%clk 01:31:38]} {[%emt 00:00:16]} 5.
Nge2 {[%clk 01:22:44]} {[%emt 00:07:18]} cxd4 {[%clk 01:30:42]} {[%emt
00:01:26]} 6. exd4 {[%clk 01:23:00]} {[%emt 00:00:14]} O-O {[%clk 01:30:24]}
{[%emt 00:00:48]} 7. a3 {[%clk 01:18:44]} {[%emt 00:04:47]} Be7 {[%clk
01:28:29]} {[%emt 00:02:25]} 8. Nf4 {[%clk 01:17:19]} {[%emt 00:01:56]} Re8
{[%clk 01:24:37]} {[%emt 00:04:22]} 9. Be3 {[%clk 01:12:04]} {[%emt 00:05:44]}
b6 {[%clk 01:17:00]} {[%emt 00:08:07]} 10. Be2 {[%clk 01:04:34]} {[%emt
00:08:01]} Bb7 {[%clk 01:16:55]} {[%emt 00:00:35]} 11. O-O {[%clk 01:04:54]}
{[%emt 00:00:10]} d6 {[%clk 01:14:43]} {[%emt 00:02:42]} 12. Qd2 {[%clk
00:56:07]} {[%emt 00:09:22]} Nbd7 {[%clk 01:10:25]} {[%emt 00:04:46]} 13. b4
{[%clk 00:56:06]} {[%emt 00:00:31]} Rc8 {[%clk 01:01:07]} {[%emt 00:09:51]} 14.
Rac1 {[%clk 00:48:02]} {[%emt 00:08:34]} Qc7 {[%clk 00:51:59]} {[%emt
00:09:38]} 15. Rfd1 {[%clk 00:43:32]} {[%emt 00:05:02]} Qb8 {[%clk 00:51:30]}
{[%emt 00:00:51]} 16. d5 {[%clk 00:29:13]} {[%emt 00:14:58]} e5 {[%clk
00:49:27]} {[%emt 00:02:31]} 17. Nh3 {[%clk 00:29:36]} Ba6 {[%clk 00:41:04]}
{[%emt 00:09:00]} 18. Qa2 {[%clk 00:18:46]} {[%emt 00:11:14]} Rc7 {[%clk
00:34:55]} {[%emt 00:06:45]} 19. a4 {[%clk 00:16:41]} {[%emt 00:02:33]} Rec8
{[%clk 00:30:02]} {[%emt 00:05:25]} 20. Nb5 {[%clk 00:17:03]} {[%emt 00:00:20]}
Bxb5 {[%clk 00:30:21]} 21. axb5 {[%clk 00:17:32]} Ne8 {[%clk 00:29:50]} {[%emt
00:00:59]} 22. Rc3 {[%clk 00:13:28]} {[%emt 00:04:49]} f5 {[%clk 00:24:38]}
{[%emt 00:05:25]} 23. f4 {[%clk 00:13:57]} Bf6 {[%clk 00:23:59]} {[%emt
00:01:21]} 24. Ra3 {[%clk 00:13:51]} {[%emt 00:00:41]} h6 {[%clk 00:22:36]}
{[%emt 00:01:42]} 25. fxe5 {[%clk 00:09:10]} {[%emt 00:05:05]} Nxe5 {[%clk
00:21:49]} {[%emt 00:01:21]} 26. c5 {[%clk 00:09:26]} {[%emt 00:00:20]} bxc5
{[%clk 00:22:14]} 27. bxc5 {[%clk 00:09:53]} Rxc5 {[%clk 00:22:24]} {[%emt
00:00:20]} 28. Bxc5 {[%clk 00:09:23]} {[%emt 00:01:01]} Rxc5 {[%clk 00:22:38]}
{[%emt 00:00:20]} 29. Rxa7 {[%clk 00:09:25]} {[%emt 00:00:20]} Nc7 {[%clk
00:23:02]} {[%emt 00:00:20]} 30. Nf4 {[%clk 00:07:56]} {[%emt 00:01:53]} Ng4
{[%clk 00:17:55]} {[%emt 00:05:27]} 31. Bxg4 {[%clk 00:06:45]} {[%emt
00:01:41]} fxg4 {[%clk 00:18:19]} {[%emt 00:00:06]} 32. Ne6 {[%clk 00:06:49]}
{[%emt 00:00:26]} Rc2 {[%clk 00:12:11]} {[%emt 00:06:47]} 33. Qxc2 {[%clk
00:06:13]} {[%emt 00:01:02]} Qxa7+ {[%clk 00:12:34]} {[%emt 00:00:10]} 34. Kh1
{[%clk 00:04:34]} {[%emt 00:02:11]} Nxb5 {[%clk 00:11:00]} {[%emt 00:01:54]} 35.
Qc8+ {[%clk 00:04:21]} {[%emt 00:00:52]} Kh7 {[%clk 00:11:12]} {[%emt
00:00:09]} 36. Nf8+ {[%clk 00:04:17]} {[%emt 00:00:39]} Kg8 {[%clk 00:11:36]}
37. Nd7+ {[%clk 00:04:25]} {[%emt 00:00:23]} 1-0